Cogmind - Beta 16 @@@ ROGUE MODE // 2026.01.17 @ 17:02:08 Player: Bity Result: Destroyed by D-53 Grenadier with Mini Grenade Launcher Performance ------------- Evolutions (0) 0 Regions Visited (2) 400 Robots Destroyed (20) 100 Value Destroyed (355) 355 Prototype IDs (1) 20 Alien Tech Used (0) 0 Bonus (0) 0 TOTAL SCORE: 875 Bonus ------- None Cogmind --------- Core Integrity 0/250 Matter 232/300 Energy 83/100 System Corruption 4% Temperature Cool (90) Movement Rolling (80) Location -10/Mines Parts ------- > --- POWER (1) -------- (None) > --- PROPULSION (2) --- Wheel Wheel > --- UTILITY (2) ------ Large Storage Unit > --- WEAPON (2) ------- (None) > --- INVENTORY (15) --- Ion Engine Improved Ion Engine Improved Aluminum Leg Improved Aluminum Leg Wheel Wheel Huge Storage Unit Signal Interpreter Hardened Light Armor Plating Hardened Light Armor Plating Autogun Autogun Improved Assault Rifle Hammer Peak State ------------ > --- POWER ------------ Improved Ion Engine > --- PROPULSION ------- Improved Aluminum Leg Improved Aluminum Leg > --- UTILITY ---------- Large Storage Unit Trap Extractor > --- WEAPON ----------- Improved Assault Rifle Improved Assault Rifle > --- INVENTORY -------- Ion Engine Light Ion Engine Improved Ion Engine Light Treads Light Treads Wheel Wheel Wheel Wheel Medium Storage Unit Signal Interpreter Autogun Autogun Improved Assault Rifle Mining Laser [Rating: 17] Favorites ----------- Power Improved Ion Engine Engine Improved Ion Engine Propulsion Aluminum Leg Leg Aluminum Leg Wheel Wheel Utility Large Storage Unit Device Seismic Detector Storage Large Storage Unit Weapon Improved Assault Rifle Energy Gun EM Pulse Gun Ballistic Gun Improved Assault Rifle Special Weapon Mining Laser Build | -11 -10 -10 ------- Run | Yrd Mat Min Slots Evolved . | . . . Power . | . . . Propulsion . | . . . Utility . | . . . Weapon . | . . . Parts Attached 17 | 2 13 2 Power 1 | . 1 . Engine 1 | . 1 . Core . | . . . Reactor . | . . . Propulsion 6 | . 4 2 Treads . | . . . Leg 3 | . 3 . Wheel 3 | . 1 2 Hover . | . . . Flight . | . . . Utility 4 | 1 3 . Device 3 | 1 2 . Storage 1 | . 1 . Processor . | . . . Hackware . | . . . Protection . | . . . Artifact . | . . . Weapon 6 | 1 5 . Energy Gun . | . . . Energy Cannon . | . . . Ballistic Gun 5 | 1 4 . Ballistic Cannon . | . . . Launcher . | . . . Special Weapon 1 | . 1 . Impact Weapon . | . . . Slashing Weapon . | . . . Piercing Weapon . | . . . Special Melee Weapon . | . . . Unidentified Prototypes 1 | . 1 . Parts Lost 6 | . 1 5 Power 1 | . . 1 Propulsion 1 | . . 1 Utility 2 | . 1 1 Weapon 2 | . . 2 Highest Loss Streak 5 | . 1 5 To Critical Strikes . | . . . Average Backups 12 | 6 13 15 Power 2 | 1 2 2 Propulsion 5 | 4 5 5 Utility 2 | . 2 4 Weapon 2 | . 3 4 Tool/Special . | . . . Unused Backups 21 | 7 4 10 Power 3 | 1 . 2 Propulsion 6 | 2 2 2 Utility 7 | 1 2 4 Weapon 5 | 3 . 2 Tool/Special . | . . . Average Slot Usage (%) 96 | . 98 78 Engine 13 | . 14 11 Leg 23 | . 25 . Wheel 2 | . 1 18 Device 13 | . 13 9 Storage 14 | . 14 14 Ballistic Gun 23 | . 23 23 Special Weapon 3 | . 3 . Peak Build Rating 17 | 7 17 14 Average Rating 12 | 6 13 11 On Entrance 9 | 6 7 15 Avg Prop Armor Cover (%) 5 | . 5 . Naked Turns . | . . . Heaviest Build 35 | 12 35 34 Greatest Support 26 | 20 26 20 Greatest Overweight (x) 3 | . 3 2 Average Overweight (x) . | . 1 1 Largest Inventory Capacity 15 | 8 15 15 Average Capacity 13 | 8 14 15 Most Carried 15 | 8 15 15 Average Carried 12 | 6 13 14 Final Capacity 15 | 8 15 15 Final Carried 15 | 8 15 14 Class Distribution -------------------- 100% | Mutant Dominant Class ---------------- Mutant | -10/Materials Mutant | -10/Mines Resources | -11 -10 -10 ----------- Run | Yrd Mat Min Matter Collected 695 | 276 419 . Remotely . | . . . Salvage Created 726 | 164 512 50 Parts 38 | 7 31 . Haulers Intercepted . | . . . Recyclers Shooed 1 | 1 . . Parts Field Recycled . | . . . Retrieved Matter . | . . . Parts Self-Destructed . | . . . Prevented . | . . . Parts Restored . | . . . Kills | -11 -10 -10 ------- Run | Yrd Mat Min Combat Hostiles Destroyed 16 | . 12 4 Guns 16 | . 12 4 Classes Destroyed 8 | 2 5 1 Worker 1 | . 1 . Builder 1 | . 1 . Tunneler 3 | 3 . . Recycler 2 | 1 1 . Watcher 1 | . 1 . Swarmer 6 | . 6 . Grunt 6 | . 6 . Assembled 4 | . . 4 Best Kill Streak 4 | 2 4 4 Combat Bots Only 4 | . 4 4 Max Kills in Single Turn 2 | 1 2 1 Gunslinging 1 | . 1 . Exploded . | . . . Melee . | . . . Uniques/NPCs Destroyed . | . . . Combat | -11 -10 -10 -------- Run | Yrd Mat Min Hostile Shots Fired 87 | . 69 18 Missed 28 | . 24 4 Hits 59 | . 45 14 Melee 7 | . . 7 Projectile 52 | . 45 7 AOE 5 | . . 5 Critical Strikes 1 | . 1 . Damage Taken 861 | . 429 432 Core 285 | . 92 193 Absorbed by Shields . | . . . Core Remaining (%) 100 | 100 . . Volleys Fired 69 | 14 43 12 Largest 2 | 2 2 2 Hottest 123 | 40 123 46 Shots Fired 128 | 28 76 24 Gun 117 | 28 65 24 Cannon . | . . . Launcher . | . . . Special 11 | . 11 . Kinetic 117 | 28 65 24 Thermal 11 | . 11 . Explosive . | . . . Electromagnetic . | . . . Robot Hit Streak 8 | 7 7 8 Robot Miss Streak 6 | 1 6 1 Penetration Max . | . . . Secondary Targets 3 | . 3 . Max Gunslinging Chain 1 | . 1 . Shots Hit Robots 80 | 21 39 20 Core Hits 37 | 8 20 9 Critical Kills . | . . . Critical Parts Destroyed . | . . . Critical Strikes . | . . . Melee Attacks . | . . . Impact . | . . . Slashing . | . . . Piercing . | . . . Sneak Attacks . | . . . Combat Hostiles . | . . . Follow-up Attacks . | . . . Damage Inflicted 1106 | 214 580 312 Guns 1082 | 214 556 312 Cannons . | . . . Explosions . | . . . Melee . | . . . Ramming . | . . . Kinetic 1082 | 214 556 312 Thermal 24 | . 24 . Explosive . | . . . Electromagnetic . | . . . Impact . | . . . Slashing . | . . . Piercing . | . . . Highest Corruption 4 | . . 4 Average Corruption 2 | . . 2 Corruption Purged . | . . . Corruption Blocked . | . . . Effects 1 | . . 1 Heat Flow Errors 1 | . . 1 Overload Shots . | . . . Overflow Damage . | . . . Projectiles . | . . . Explosions . | . . . Melee . | . . . Knockbacks . | . . . Impact . | . . . Kinetic . | . . . Secondary . | . . . Self-Inflicted Damage . | . . . Shots . | . . . Rammed . | . . . Targets Rammed . | . . . Kicked . | . . . Crushed . | . . . Highest Temperature 196 | . 196 115 Average Temperature 29 | . 28 35 Received Heat Transfer 198 | . 138 60 Siege Activations . | . . . Martial Activations . | . . . Shielding Activations . | . . . Robots Disrupted . | . . . Combat Hostiles . | . . . Robots Corrupted . | . . . Combat Hostiles . | . . . Parts Fried . | . . . Impact Corruptions . | . . . Robots Melted . | . . . Combat Hostiles . | . . . Parts Melted . | . . . Heat Transferred 50 | . 50 . Parts Sabotaged . | . . . Parts Stolen . | . . . Parts Stripped . | . . . Power Chain Reactions . | . . . Alert | -11 -10 -10 ------- Run | Yrd Mat Min Maximum Alert Level . | . . . Low Security (%) 100 | 100 100 100 Level 1 . | . . . Level 2 . | . . . Level 3 . | . . . Level 4 . | . . . Level 5 . | . . . High Security . | . . . Max Security . | . . . Peak Influence 121 | 10 121 30 Initial 30 | . . 30 Average 27 | . 32 13 Influence Increases 407 | 20 387 . Destroy 0b10 Robot/C 240 | . 240 . Destroy 0b10 Robot/NC 40 | 20 20 . Destroy Leader 62 | . 62 . Successful Hack 11 | . 11 . Select Force Hacks 30 | . 30 . Disable Machine 15 | . 15 . Destroy Structure 9 | . 9 . Influence Decreases 407 | 20 309 78 Entered New Map 48 | . . 48 Time Decay 329 | 20 299 10 Lost Part 30 | . 10 20 Squads Dispatched 4 | . 4 . Investigation 1 | . 1 . Extermination . | . . . Reinforcement 3 | . 3 . Assault . | . . . Garrison . | . . . Intercept . | . . . Searches Triggered . | . . . Construction Impeded . | . . . Haulers Reinforced . | . . . Active Scanning Responses . | . . . Cargo Convoy Interrupts . | . . . Stealth | -11 -10 -10 --------- Run | Yrd Mat Min Distress Signals . | . . . Communications Jammed . | . . . Distress Signals . | . . . Times Spotted 40 | . 20 20 Peak Tracking Total 15 | . 4 15 Tactical Retreats 1 | . . 1 Traps | -11 -10 -10 ------- Run | Yrd Mat Min Traps Triggered 6 | . 6 . Indirectly . | . . . Trap Hack Attempts . | . . . Triggered . | . . . Disarmed . | . . . Reprogrammed . | . . . Reused . | . . . Traps Extracted . | . . . Installed . | . . . Triggered . | . . . Machines | -11 -10 -10 ---------- Run | Yrd Mat Min Machines Disabled 1 | . 1 . Max in Single Turn 1 | . 1 . Machines Repaired . | . . . Machines Dismantled . | . . . Machines Sabotaged . | . . . Overloaded Fab Kills . | . . . Hacking | -11 -10 -10 --------- Run | Yrd Mat Min Machines Accessed 3 | . 3 . Terminals 2 | . 2 . Fabricators . | . . . Repair Stations . | . . . Recycling Units 1 | . 1 . Scanalyzers . | . . . Garrison Access . | . . . Total Hacks 9 | . 9 . Successful 6 | . 6 . Failed 3 | . 3 . Catastrophic . | . . . Database Lockouts . | . . . Manual 5 | . 5 . Terminals 8 | . 8 . Fabricators . | . . . Repair Stations . | . . . Recycling Units 1 | . 1 . Scanalyzers . | . . . Garrison Access . | . . . Terminal Hacks 3 | . 3 . Terminal Index 1 | . 1 . Reinforcement Status 1 | . 1 . Recall Reinforcements 1 | . 1 . Fabricator Hacks . | . . . Repair Station Hacks . | . . . Recycling Unit Hacks . | . . . Scanalyzer . | . . . Garrison Access Hacks . | . . . Unauthorized Hacks 3 | . 3 . Terminals 2 | . 2 . Botnet 2 | . 2 . Fabricators . | . . . Repair Stations . | . . . Recycling Units 1 | . 1 . Tunnel 1 | . 1 . Scanalyzers . | . . . Garrison Access . | . . . Data Cores Recovered . | . . . Used . | . . . Hacking Detections 2 | . 2 . Full Trace Events . | . . . Feedback Events . | . . . Feedback Blocked . | . . . Robot Schematics Acquired . | . . . Robots Built . | . . . Authchips . | . . . Time . | . . . Total Robot Build Rating . | . . . Part Schematics Acquired . | . . . Parts Built . | . . . Authchips . | . . . Time . | . . . Total Part Build Rating . | . . . Part Studies Acquired . | . . . Parts Repaired . | . . . Time . | . . . Parts Recycled . | . . . Recycled Matter . | . . . Retrieved Matter . | . . . Retrieved Components . | . . . Parts Scanalyzed . | . . . Part Schematics Acquired . | . . . Parts Damaged . | . . . Bothacking | -11 -10 -10 ------------ Run | Yrd Mat Min Used RIF Installer . | . . . Robots Hacked . | . . . Non-combat . | . . . Combat . | . . . Robot Hacks Applied . | . . . Relay Couplers Released . | . . . Fabnet Peak Effective % . | . . . Robots Rewired . | . . . Allies Hacked . | . . . Hacks Repelled . | . . . Allies | -11 -10 -10 -------- Run | Yrd Mat Min Total Allies . | . . . Largest Group . | . . . Highest-Rated Group . | . . . Highest-Rated Ally . | . . . Total Orders . | . . . Ally Attacks . | . . . Total Damage . | . . . Kills . | . . . Allies Corrupted . | . . . Allies Melted . | . . . Intel | -11 -10 -10 ------- Run | Yrd Mat Min Active Infowar (turns) 580 | 14 529 37 Structural 253 | . 216 37 Seismic 327 | 14 313 . Robot Analysis Total . | . . . Derelict Logs Recovered . | . . . Drone Launches . | . . . Drone Recoveries . | . . . Exploration | -11 -10 -10 ------------- Run | Yrd Mat Min Turns Passed 913 | 118 743 52 Spaces Moved 320 | 38 270 12 Core . | . . . Treads . | . . . Legs 303 | 38 265 . Wheels 17 | . 5 12 Hover . | . . . Flight . | . . . Fastest Speed 80 | 120 110 80 Average Speed 178 | 120 190 96 Slowest Speed 330 | 120 330 110 Overloaded Moves . | . . . Propulsion Burnouts . | . . . Robots Hopped . | . . . Potential Cave-ins . | . . . Cave-ins Triggered . | . . . Exploration Rate (%) 18 | 4 44 7 Regions Visited 2 Branch Regions 1 Pre-discovered Areas 1 | . 1 . Known Exits Taken . | . . . Unknown Exits Taken 2 | 1 1 . Scrap Searched . | . . . Spaces Dug 7 | . 7 . Terrain Destroyed 8 | . 8 . Melee . | . . . Projectile 8 | . 8 . AOE . | . . . Terrain Rammed . | . . . Walls Destroyed . | . . . Machines Disabled . | . . . Actions | -11 -10 -10 --------- Run | Yrd Mat Min Total 513 | 84 401 28 Wait 69 | 27 40 2 Move 318 | 37 269 12 Hop . | . . . Pick Up 15 | 3 12 . Fast Attach 13 | 1 12 . Attach 3 | . 2 1 Detach 1 | . 1 . Swap 13 | 1 11 1 Drop 12 | 1 11 . Fire 69 | 14 43 12 Melee . | . . . Ram . | . . . Kick . | . . . Crush . | . . . Escape Stasis . | . . . Rewire . | . . . Trap . | . . . Miscellaneous . | . . . Route ------- -11/Scrapyard -10/Materials (discovered 4 exits: [*Mat x2] / [*Min] / [Sub]) -10/Mines History --------- Turn | Location | Event 1 | -11/Scrapyard | Discovered new exit (range 3) 119 | -11/Scrapyard | Entered Materials 301 | -10/Materials | Build established: Mutant 416 | -10/Materials | Discovered new exit (range 11) 669 | -10/Materials | Discovered new exit (range 11) 669 | -10/Materials | Discovered new exit (range 7) 809 | -10/Materials | Discovered new exit (range 14) 862 | -10/Materials | Entered Mines 863 | -10/Mines | Assembled infested the area 878 | -10/Mines | Core integrity fell below 50% 909 | -10/Mines | Core integrity fell below 20% 914 | -10/Mines | Destroyed by D-53 Grenadier with Mini Grenade Launcher Last Messages --------------- 00895_ Destroyed Asb. F-torch. 00895_ Destroyed Asb. Hover Unit. 00898_ as-07347 destroyed. 00899_ Structural Scanner destroyed. 00899_ System corrupted by crushing effect (+2). 00899_ Knocked back. 00904_ C-45 Heavy ARC bursts open, deploying its payload. 00904_ D-53 Grenadier unfolds itself. 00906_ as-90909 destroyed. 00906_ as-22894 destroyed. 00906_ as-90255 destroyed. 00906_ Imp. Assault Rifle destroyed. 00907_ as-49757 destroyed. 00907_ as-16177 destroyed. 00908_ as-64499 destroyed. 00909_ Imp. Ion Engine destroyed. 00912_ System corrupted: Heat flow error (+140). 00914_ as-14580 destroyed. 00914_ as-02434 destroyed. Map ----- +----------------------------------------------------+ | ?????????????????????????????????????????????????? | | ?????????????????????????????????????????????????? | | ?????????????????????????????????????????????????? | | ?????????????????????????????????????????????????? | | ?????????????????????????????????????????????????? | | ?????????????????????????????????????????????????? | | ?????????????????????????????????????????????????? | | ?????????????????????????????????????????????????? | | ?????????????????????????????????????????????????? | | ?????????????????????????????????????????????????? | | ?????????????????????????????????????????????????? | | ?????????????????????????????????????????????????? | | ?????????????????????????????????????????????????? | | ?????????????????????????????????????????????????? | | ?????????????????????????????????????????????????? | | ?????????????????????????????????????????????????? | | ?????????????????????????????????????????????????? | | ?????????????????????????????????????????????????? | | ?????????????????????????????????????????????????? | | ?????????????????????????????????????????????????? | | ?????????????????????????????????????????????????? | | ?????????????????????????????????????????????????? | | ???????????????????????######????????????????????? | | ???????????????????????######????????????????????? | | ???????????????????????# ????????????????????? | | ??????????????????????## @##?????????????????????? | | ?????????????????????### ##?????????????????????? | | ????????????????????### #?????????????????????? | | ???????????????????## #?????????????????????? | | ??????????????## ?## ###????????????????????? | | ?????????????### ### #????????????????????? | | ?????????????### # #????????????????????? | | ????????## ?### d #????????????????????? | | ????????## ## a #????????????????????? | | ????????## "%" d #???????????????????? | | ???????### " a ##???????????????????? | | ?????#### #????????????????????? | | ?????## ## a ##????????????????????? | | ????? #### # % ?????????????????????? | | ??????? ####?### ?????????????????????? | | ??????? ## #####?????# ##"????????????????????? | | ????????########???????####?#????????????????????? | | ?????????####??????????####??????????????????????? | | | | | | | | | | | | | | | +----------------------------------------------------+ Best States ------------- Heat Dissipation 25 Energy Generation 12 Energy Capacity 265 Matter Stores 300 Matter Capacity 300 Sight Range 16 Terrain Scan Density 10 Evasion (%) 55 Trap Extractor Capacity 4 Item Schematics ----------------- None Robot Schematics ------------------ None Fabricated ------------ Nothing Repaired ---------- Nothing Studied --------- None Alien Tech Used ----------------- None Achievements -------------- None Challenges ------------ None Game ------ Seed MiningCorruptionShearcannon Manual? 0 Play Time 00:07:50 Cumulative 75.9 hours Start 2026.01.16 @ 23:47:49 End 2026.01.17 @ 17:02:08 Sessions 2 Manual Loads 0 Difficulty Rogue Special Mode None Game No. 92 Rogue 92 Adventurer 0 Explorer 0 Win Type - Total 1 Types 1/0/0/0/0/0/0/0/0/0 Lore% 51 Gallery% 50 Achievement% 40 Wizard Run 0 Options --------- Layout 2 ASCII 0 Keyboard 1 Movement Numpad Keybinds 0 Fullscreen 2 Font 24/Smallcaps Map View 50x44 Zoom Use 0% Tactical HUD 1 Map Filters NONE Filters NONE Steam 1 RUN: d7ea0399-0747-498b-9aab-0ed2b9d7e945